fUSD/lending_fUSD_20250608
["ID","MTS","AMOUNT","RATE_DAILY","PERIOD"]
[364993026,1749385857601,-5000.0,0.00019987,2]
[364993027,1749385857610,-5000.0,0.00019987,2]
[364993028,1749385857620,-5000.0,0.00019987,2]
[364993029,1749385857630,-5000.0,0.00019987,2]
[364993030,1749385857640,-3615.68937869,0.00019987,2]
[364993031,1749385857650,-500.0,0.00019987,2]
[364993032,1749385857661,-151.79329105,0.00019987,2]
[364993033,1749385857670,-500.0,0.00019988,2]
[364993034,1749385857682,-500.0,0.00019988,2]
[364993035,1749385857691,-500.0,0.00019988,2]
[364993036,1749385857700,-500.0,0.00019988,2]
[364993037,1749385857711,-500.0,0.00019988,2]
[364993038,1749385857721,-500.0,0.00019988,2]
[364993039,1749385857731,-500.0,0.00019988,2]
[364993040,1749385857741,-245.87569353,0.00019988,2]
[364993041,1749385857751,-975.56,0.00019988,2]
[364993042,1749385857760,-975.56,0.00019988,2]
[364993043,1749385857770,-975.56,0.00019988,2]
[364993044,1749385857781,-975.56,0.00019988,2]
[364993045,1749385857791,-975.56,0.00019988,2]
[364993046,1749385857800,-975.56,0.00019988,2]
[364993047,1749385857811,-975.56,0.00019988,2]
[364993048,1749385857821,-546321.92663365,0.00019989,2]
[364993049,1749385858082,-5207.4,0.00019989,2]
[364993050,1749385858094,-532.29989139,0.00019989,2]
[364993051,1749385858309,-226.5,0.00019,2]
[364993052,1749385858319,-480.0,0.00019178,2]
[364993053,1749385858329,-176.5,0.00019342,2]
[364993054,1749385858340,-267.36860022,0.00019342,2]
[364993055,1749385858352,-36.13139978,0.00019342,2]
[364993056,1749385858362,-359.79171829,0.00019506,2]
[364993057,1749385858632,-504.865,0.00018815,2]
[364993058,1749385858642,-443.82674609,0.00019178,2]
[364993059,1749385858652,-614.32,0.00019178,2]
[364993060,1749385858663,-161.40828171,0.00019506,2]
[364993061,1749385858673,-152.30567012,0.00019642,2]
[364993062,1749385858682,-180.13,0.00019671,2]
[364993063,1749385858691,-4476.50888899,0.00019989,2]
[364993064,1749385858706,-499.48754175,0.00019989,2]
[364993065,1749385858719,-1711.87058023,0.00019989,2]
[364993066,1749385858730,-1904.75398706,0.00019989,2]
[364993067,1749385858924,-151.562397,0.00019,2]
[364993068,1749385858935,-152.30567012,0.00019724,2]
[364993069,1749385858945,-3626.57176364,0.00019989,2]
[364993070,1749385858960,-1355.77463769,0.00019989,2]
[364993071,1749385858971,-1729.24609705,0.00019989,2]
[364993072,1749385871934,360.0,0.00017051,2]
[364993073,1749385969434,532.99,0.00016766,2]
[364993921,1749386815160,893.18,0.00017051,2]
[364993923,1749386889016,241.84,0.00013699,2]
[364993924,1749387007421,527.01,0.00016336,2]
[364993934,1749387031599,-204.0,0.0001751,2]
[364993935,1749387031609,-151.0,0.00017723,2]
[364993936,1749387031618,-215.55157139,0.00018126,2]
[364994442,1749387037635,-784.44842861,0.00018126,2]
[364994444,1749387037645,-150.81,0.00018236,2]
[364994446,1749387037655,-152.74,0.00018251,2]
[364994448,1749387037664,-150.14,0.00018251,2]
[364994450,1749387037674,-152.2,0.00018251,2]
[364994452,1749387037683,-151.91,0.00018254,2]
[364994454,1749387037693,-150.57,0.00018254,2]
[364994456,1749387037703,-207.4,0.00018258,2]
[364994458,1749387037713,-150.1,0.00018267,2]
[364994460,1749387037723,-151.37,0.00018267,2]
[364994462,1749387037733,-302.85,0.00018267,2]
[364994464,1749387037742,-303.12,0.00018267,2]
[364994466,1749387037751,-116.98588252,0.000186,2]
[364994471,1749387037798,-304.74865944,0.000186,2]
[364994478,1749387037908,-105.27545804,0.000186,2]
[364994479,1749387037918,-277.0,0.00018786,2]
[364994480,1749387037927,-300.0,0.00018786,2]
[364994481,1749387037937,-454.71,0.00018787,2]
[364994482,1749387037947,-353.0,0.00018787,2]
[364994483,1749387037959,-454.71,0.00018787,2]
[364994484,1749387037968,-170.63,0.00018787,2]
[364994485,1749387037978,-454.71,0.000188,2]
[364994486,1749387037988,-395.95142785,0.00018931,2]
[364994939,1749387042755,-286.0,0.0001751,2]
[364994941,1749387042764,-398.59354176,0.00018931,2]
[364994943,1749387042774,-189.09,0.00019,2]
[364994945,1749387042784,-151.0,0.00019067,2]
[364994947,1749387042793,-1507.9057,0.00019078,2]
[364994949,1749387042802,-395.71976489,0.00019178,2]
[364994951,1749387042812,-598.16650091,0.00019178,2]
[364994953,1749387042821,-480.0,0.00019178,2]
[364994955,1749387042831,-303.62713164,0.00019178,2]
[364994970,1749387042971,-176.37286836,0.00019178,2]
[364994972,1749387042981,-480.0,0.00019178,2]
[364994974,1749387042990,-603.55,0.00019178,2]
[364994976,1749387042999,-480.0,0.00019178,2]
[364994978,1749387043008,-480.0,0.00019178,2]
[364994980,1749387043018,-480.0,0.00019178,2]
[364994982,1749387043027,-480.0,0.00019178,2]
[364994984,1749387043036,-480.0,0.00019178,2]
[364994986,1749387043045,-480.0,0.00019178,2]
[364994987,1749387043055,-480.0,0.00019178,2]
[364994989,1749387043064,-480.0,0.00019178,2]
[364994991,1749387043073,-480.0,0.00019178,2]
[364994993,1749387043082,-480.0,0.00019178,2]
[364994996,1749387043091,-295.56850094,0.00019178,2]
[364994999,1749387043101,-480.0,0.00019178,2]
[364995002,1749387043110,-480.0,0.00019178,2]
[364995005,1749387043120,-480.0,0.00019178,2]
[364995007,1749387043129,-480.0,0.00019178,2]
[364995009,1749387043139,-1131.02,0.00019178,2]
[364995011,1749387043152,-480.0,0.00019178,2]
[364995013,1749387043162,-480.0,0.00019178,2]
[364995015,1749387043171,-480.0,0.00019178,2]
[364995017,1749387043180,-480.0,0.00019178,2]
[364995019,1749387043191,-516.01018504,0.00019178,2]
[364995021,1749387043201,-480.0,0.00019178,2]
[364995023,1749387043211,-480.0,0.00019178,2]
[364995025,1749387043220,-480.0,0.00019178,2]
[364995027,1749387043230,-480.0,0.00019178,2]
[364995029,1749387043240,-480.0,0.00019178,2]
[364995031,1749387043249,-2264.02,0.00019178,2]
[364995032,1749387043258,-480.0,0.00019178,2]
[364995034,1749387043268,-480.0,0.00019178,2]
[364995036,1749387043277,-480.0,0.00019178,2]
[364995038,1749387043286,-480.0,0.00019178,2]
[364995040,1749387043295,-983.82,0.00019178,2]
[364995042,1749387043305,-519.55,0.00019178,2]
[364995044,1749387043315,-480.0,0.00019178,2]
[364995046,1749387043324,-480.0,0.00019178,2]
[364995048,1749387043334,-480.0,0.00019178,2]
[364995050,1749387043343,-1328.63,0.00019178,2]
[364995052,1749387043353,-480.0,0.00019178,2]
[364995054,1749387043363,-739.45,0.00019178,2]
[364995056,1749387043372,-508.65,0.00019178,2]
[364995058,1749387043383,-480.0,0.00019178,2]
[364995060,1749387043392,-625.51,0.00019178,2]
[364995062,1749387043402,-480.0,0.00019178,2]
[364995064,1749387043411,-2436.96,0.00019178,2]
[364995066,1749387043421,-204.19762872,0.00019178,2]
[364995068,1749387043431,-503.34,0.00019178,2]
[364995070,1749387043440,-480.0,0.00019178,2]
[364995072,1749387043450,-1062.18,0.00019178,2]
[364995074,1749387043459,-2202.69,0.00019178,2]
[364995076,1749387043468,-480.0,0.00019178,2]
[364995078,1749387043478,-480.0,0.00019178,2]
[364995080,1749387043487,-480.0,0.00019178,2]
[364995082,1749387043496,-756.95,0.00019178,2]
[364995083,1749387043506,-480.0,0.00019178,2]
[364995085,1749387043516,-538.80583485,0.00019178,2]
[364995087,1749387043525,-480.0,0.00019178,2]
[364995089,1749387043534,-480.0,0.00019178,2]
[364995091,1749387043544,-480.0,0.00019178,2]
[364995093,1749387043553,-525.48,0.00019178,2]
[364995095,1749387043564,-480.0,0.00019178,2]
[364995097,1749387043574,-480.0,0.00019178,2]
[364995099,1749387043583,-945.12,0.00019178,2]
[364995101,1749387043592,-497.31,0.00019178,2]
[364995103,1749387043601,-480.0,0.00019178,2]
[364995105,1749387043611,-480.0,0.00019178,2]
[364995107,1749387043621,-1211.19,0.00019178,2]
[364995109,1749387043629,-480.0,0.00019178,2]
[364995111,1749387043640,-480.0,0.00019178,2]
[364995113,1749387043649,-480.0,0.00019178,2]
[364995115,1749387043659,-480.0,0.00019178,2]
[364995117,1749387043668,-606.07273182,0.00019178,2]
[364995119,1749387043677,-3341.69,0.00019178,2]
[364995121,1749387043687,-39016.1,0.00019178,2]
[364995123,1749387043696,-480.0,0.00019178,2]
[364995125,1749387043706,-480.0,0.00019178,2]
[364995126,1749387043716,-1733.6,0.00019178,2]
[364995128,1749387043725,-480.0,0.00019178,2]
[364995130,1749387043734,-3008.79,0.00019178,2]
[364995132,1749387043744,-751.49,0.00019178,2]
[364995134,1749387043754,-480.0,0.00019178,2]
[364995136,1749387043763,-480.0,0.00019178,2]
[364995138,1749387043773,-480.0,0.00019178,2]
[364995140,1749387043782,-480.0,0.00019178,2]
[364995142,1749387043791,-480.0,0.00019178,2]
[364995144,1749387043800,-480.0,0.00019178,2]
[364995146,1749387043809,-2191.96,0.00019178,2]
[364995148,1749387043820,-158.91544067,0.00019178,2]
[364995150,1749387043829,-569.14,0.00019178,2]
[364995152,1749387043838,-480.0,0.00019178,2]
[364995154,1749387043848,-480.0,0.00019178,2]
[364995156,1749387043857,-480.0,0.00019178,2]
[364995158,1749387043867,-480.0,0.00019178,2]
[364995160,1749387043876,-609.81,0.00019178,2]
[364995162,1749387043885,-597.34,0.00019178,2]
[364995164,1749387043895,-480.0,0.00019178,2]
[364995166,1749387043904,-152.0,0.00019191,3]
[364995168,1749387043913,-1182.57,0.000192,2]
[364995170,1749387043924,-169.6300166,0.00019242,2]
[364995172,1749387043933,-3184.87235559,0.00019242,2]
[364995174,1749387043943,-173.205253,0.00019277,2]
[364995176,1749387043952,-3184.8723555,0.00019315,2]
[364995178,1749387043962,-239.04926137,0.00019341,2]
[364995180,1749387043971,-480.0,0.00019342,2]
[364995182,1749387043980,-480.0,0.00019342,2]
[364995183,1749387043989,-480.0,0.00019342,2]
[364995185,1749387043998,-603.55,0.00019342,2]
[364995187,1749387044008,-480.0,0.00019342,2]
[364995189,1749387044017,-480.0,0.00019342,2]
[364995191,1749387044027,-480.0,0.00019342,2]
[364995193,1749387044036,-480.0,0.00019342,2]
[364995195,1749387044045,-480.0,0.00019342,2]
[364995197,1749387044053,-480.0,0.00019342,2]
[364995199,1749387044063,-480.0,0.00019342,2]
[364995201,1749387044072,-480.0,0.00019342,2]
[364995203,1749387044082,-480.0,0.00019342,2]
[364995205,1749387044091,-485.94680675,0.00019342,2]
[364995207,1749387044100,-480.0,0.00019342,2]
[364995209,1749387044109,-480.0,0.00019342,2]
[364995211,1749387044119,-1131.02,0.00019342,2]
[364995213,1749387044128,-480.0,0.00019342,2]
[364995215,1749387044138,-480.0,0.00019342,2]
[364995217,1749387044151,-480.0,0.00019342,2]
[364995219,1749387044160,-480.0,0.00019342,2]
[364995221,1749387044170,-480.0,0.00019342,2]
[364995223,1749387044179,-480.0,0.00019342,2]
[364995225,1749387044190,-480.0,0.00019342,2]
[364995227,1749387044199,-480.0,0.00019342,2]
[364995229,1749387044208,-2264.02,0.00019342,2]
[364995231,1749387044219,-480.0,0.00019342,2]
[364995233,1749387044229,-480.0,0.00019342,2]
[364995235,1749387044238,-480.0,0.00019342,2]
[364995237,1749387044247,-480.0,0.00019342,2]
[364995239,1749387044256,-983.82,0.00019342,2]
[364995241,1749387044265,-480.0,0.00019342,2]
[364995243,1749387044275,-571.94236076,0.00019342,2]
[364995245,1749387044284,-480.0,0.00019342,2]
[364995247,1749387044293,-1328.63,0.00019342,2]
[364995248,1749387044302,-480.0,0.00019342,2]
[364995250,1749387044311,-739.45,0.00019342,2]
[364995252,1749387044320,-508.65,0.00019342,2]
[364995255,1749387044330,-480.0,0.00019342,2]
[364995256,1749387044340,-625.51,0.00019342,2]
[364995258,1749387044350,-480.0,0.00019342,2]
[364995260,1749387044359,-2436.96,0.00019342,2]
[364995262,1749387044369,-503.34,0.00019342,2]
[364995264,1749387044378,-480.0,0.00019342,2]
[364995266,1749387044389,-1062.18,0.00019342,2]
[364995268,1749387044398,-2202.69,0.00019342,2]
[364995270,1749387044407,-480.0,0.00019342,2]
[364995272,1749387044416,-480.0,0.00019342,2]
[364995274,1749387044425,-756.95,0.00019342,2]
[364995276,1749387044435,-480.0,0.00019342,2]
[364995278,1749387044444,-480.0,0.00019342,2]
[364995280,1749387044454,-480.0,0.00019342,2]
[364995282,1749387044463,-480.0,0.00019342,2]
[364995284,1749387044473,-525.48,0.00019342,2]
[364995286,1749387044482,-480.0,0.00019342,2]
[364995288,1749387044492,-480.0,0.00019342,2]
[364995290,1749387044501,-945.12,0.00019342,2]
[364995292,1749387044511,-497.31,0.00019342,2]
[364995294,1749387044520,-480.0,0.00019342,2]
[364995296,1749387044528,-480.0,0.00019342,2]
[364995298,1749387044538,-1211.19,0.00019342,2]
[364995300,1749387044548,-480.0,0.00019342,2]
[364995301,1749387044557,-480.0,0.00019342,2]
[364995303,1749387044567,-480.0,0.00019342,2]
[364995305,1749387044576,-480.0,0.00019342,2]
[364995308,1749387044586,-3341.69,0.00019342,2]
[364995309,1749387044595,-39016.1,0.00019342,2]
[364995311,1749387044605,-480.0,0.00019342,2]
[364995313,1749387044614,-480.0,0.00019342,2]
[364995315,1749387044623,-1733.6,0.00019342,2]
[364995317,1749387044633,-480.0,0.00019342,2]
[364995319,1749387044643,-3008.79,0.00019342,2]
[364995321,1749387044652,-751.49,0.00019342,2]
[364995323,1749387044662,-295.59867549,0.00019342,2]
[364995325,1749387044671,-480.0,0.00019342,2]
[364995327,1749387044681,-629.86652215,0.00019342,2]
[364995329,1749387044690,-480.0,0.00019342,2]
[364995331,1749387044699,-480.0,0.00019342,2]
[364995333,1749387044708,-480.0,0.00019342,2]
[364995335,1749387044718,-2191.96,0.00019342,2]
[364995337,1749387044727,-569.14,0.00019342,2]
[364995339,1749387044736,-480.0,0.00019342,2]
[364995341,1749387044746,-480.0,0.00019342,2]
[364995343,1749387044755,-480.0,0.00019342,2]
[364995344,1749387044764,-609.81,0.00019342,2]
[364995346,1749387044773,-597.34,0.00019342,2]
[364995348,1749387044783,-480.0,0.00019342,2]
[364995350,1749387044792,-3184.8723555,0.00019388,2]
[364995352,1749387044802,-161.54915881,0.00019406,2]
[364995354,1749387044811,-164.55644163,0.00019406,2]
[364995356,1749387044822,-3184.8723555,0.00019461,2]
[364995358,1749387044831,-161.31761,0.00019487,13]
[364995360,1749387044840,-161.31761,0.00019487,13]
[364995362,1749387044849,-161.31761,0.00019487,13]
[364995364,1749387044858,-161.31761,0.00019487,13]
[364995366,1749387044867,-500.0,0.00019505,2]
[364995368,1749387044876,-480.0,0.00019506,2]
[364995370,1749387044885,-480.0,0.00019506,2]
[364995372,1749387044895,-480.0,0.00019506,2]
[364995373,1749387044904,-603.55,0.00019506,2]
[364995374,1749387044913,-480.0,0.00019506,2]
[364995375,1749387044923,-480.0,0.00019506,2]
[364995376,1749387044933,-512.01711281,0.00019506,2]
[364995377,1749387044942,-480.0,0.00019506,2]
[364995378,1749387044951,-150.0,0.00019506,2]
[364995379,1749387044959,-13294.92545764,0.00019506,2]
[364995380,1749387044968,-150.0,0.00019506,2]
[364995381,1749387044977,-1112.7641155,0.00019506,2]
[364995382,1749387044987,-150.0,0.00019506,2]
[364995383,1749387044996,-6009.25260262,0.00019506,2]
[364995385,1749387045005,-480.0,0.00019506,2]
[364995386,1749387045014,-480.0,0.00019506,2]
[364995388,1749387045023,-480.0,0.00019506,2]
[364995390,1749387045032,-480.0,0.00019506,2]
[364995392,1749387045041,-480.0,0.00019506,2]
[364995394,1749387045050,-221.85588819,0.00019506,2]
[364995396,1749387045059,-480.0,0.00019506,2]
[364995397,1749387045069,-1131.02,0.00019506,2]
[364995399,1749387045078,-480.0,0.00019506,2]
[364995401,1749387045087,-480.0,0.00019506,2]
[364995403,1749387045097,-480.0,0.00019506,2]
[364995405,1749387045106,-480.0,0.00019506,2]
[364995407,1749387045116,-480.0,0.00019506,2]
[364995409,1749387045125,-480.0,0.00019506,2]
[364995411,1749387045135,-480.0,0.00019506,2]
[364995413,1749387045148,-480.0,0.00019506,2]
[364995415,1749387045157,-2264.02,0.00019506,2]
[364995417,1749387045167,-480.0,0.00019506,2]
[364995419,1749387045175,-480.0,0.00019506,2]
[364995421,1749387045185,-480.0,0.00019506,2]
[364995423,1749387045194,-480.0,0.00019506,2]
[364995425,1749387045204,-983.82,0.00019506,2]
[364995427,1749387045214,-480.0,0.00019506,2]
[364995429,1749387045225,-480.0,0.00019506,2]
[364995431,1749387045235,-1328.63,0.00019506,2]
[364995433,1749387045244,-480.0,0.00019506,2]
[364995434,1749387045253,-739.45,0.00019506,2]
[364995436,1749387045262,-508.65,0.00019506,2]
[364995438,1749387045272,-480.0,0.00019506,2]
[364995440,1749387045281,-625.51,0.00019506,2]
[364995442,1749387045291,-284.36631432,0.00019506,2]
[364995444,1749387045300,-2436.96,0.00019506,2]
[364995446,1749387045309,-503.34,0.00019506,2]
[364995448,1749387045319,-480.0,0.00019506,2]
[364995450,1749387045328,-1062.18,0.00019506,2]
[364995452,1749387045338,-2202.69,0.00019506,2]
[364995454,1749387045347,-480.0,0.00019506,2]
[364995456,1749387045356,-480.0,0.00019506,2]
[364995458,1749387045365,-756.95,0.00019506,2]
[364995460,1749387045375,-480.0,0.00019506,2]
[364995462,1749387045384,-480.0,0.00019506,2]
[364995464,1749387045393,-480.0,0.00019506,2]
[364995466,1749387045403,-480.0,0.00019506,2]
[364995468,1749387045413,-525.48,0.00019506,2]
[364995470,1749387045423,-480.0,0.00019506,2]
[364995472,1749387045432,-574.45506716,0.00019506,2]
[364995473,1749387045442,-945.12,0.00019506,2]
[364995475,1749387045451,-497.31,0.00019506,2]
[364995477,1749387045461,-480.0,0.00019506,2]
[364995479,1749387045471,-495.15211815,0.00019506,2]
[364995481,1749387045481,-1211.19,0.00019506,2]
[364995483,1749387045491,-480.0,0.00019506,2]
[364995485,1749387045500,-344.4965653,0.00019506,2]
[364995487,1749387045509,-480.0,0.00019506,2]
[364995490,1749387045519,-480.0,0.00019506,2]
[364995492,1749387045528,-3341.69,0.00019506,2]
[364995494,1749387045537,-39016.1,0.00019506,2]
[364995496,1749387045547,-480.0,0.00019506,2]
[364995498,1749387045557,-480.0,0.00019506,2]
[364995500,1749387045567,-1733.6,0.00019506,2]
[364995502,1749387045576,-480.0,0.00019506,2]
[364995504,1749387045586,-3008.79,0.00019506,2]
[364995506,1749387045595,-751.49,0.00019506,2]
[364995508,1749387045605,-480.0,0.00019506,2]
[364995510,1749387045614,-480.0,0.00019506,2]
[364995512,1749387045623,-480.0,0.00019506,2]
[364995514,1749387045633,-480.0,0.00019506,2]
[364995516,1749387045643,-2191.96,0.00019506,2]
[364995518,1749387045652,-569.14,0.00019506,2]
[364995520,1749387045661,-480.0,0.00019506,2]
[364995522,1749387045671,-480.0,0.00019506,2]
[364995524,1749387045680,-480.0,0.00019506,2]
[364995525,1749387045690,-597.34,0.00019506,2]
[364995527,1749387045699,-609.81,0.00019506,2]
[364995529,1749387045709,-3184.8723555,0.00019534,2]
[364995531,1749387045718,-600.0,0.00019536,4]
[364995533,1749387045728,-169.63001658,0.00019571,2]
[364995535,1749387045737,-3184.8723555,0.00019608,2]
[364995537,1749387045746,-215.0738,0.00019627,2]
[364995540,1749387045756,-339.62,0.0001967,2]
[364995542,1749387045766,-480.0,0.00019671,2]
[364995544,1749387045775,-480.0,0.00019671,2]
[364995546,1749387045784,-314.85831355,0.00019671,2]
[364995548,1749387045793,-603.55,0.00019671,2]
[364995550,1749387045802,-480.0,0.00019671,2]
[364995552,1749387045812,-480.0,0.00019671,2]
[364995554,1749387045822,-480.0,0.00019671,2]
[364995556,1749387045831,-480.0,0.00019671,2]
[364995558,1749387045841,-480.0,0.00019671,2]
[364995560,1749387045850,-480.0,0.00019671,2]
[364995562,1749387045859,-480.0,0.00019671,2]
[364995564,1749387045869,-480.0,0.00019671,2]
[364995566,1749387045878,-480.0,0.00019671,2]
[364995568,1749387045887,-1131.02,0.00019671,2]
[364995570,1749387045897,-480.0,0.00019671,2]
[364995572,1749387045906,-480.0,0.00019671,2]
[364995574,1749387045916,-480.0,0.00019671,2]
[364995576,1749387045925,-447.75959058,0.00019671,2]
[364995578,1749387045935,-480.0,0.00019671,2]
[364995580,1749387045945,-480.0,0.00019671,2]
[364995582,1749387045955,-480.0,0.00019671,2]
[364995584,1749387045964,-480.0,0.00019671,2]
[364995586,1749387045973,-2264.02,0.00019671,2]
[364995587,1749387045982,-480.0,0.00019671,2]
[364995589,1749387045991,-383.16656678,0.00019671,2]
[364995591,1749387046001,-480.0,0.00019671,2]
[364995593,1749387046010,-480.0,0.00019671,2]
[364995595,1749387046019,-983.82,0.00019671,2]
[364995597,1749387046029,-480.0,0.00019671,2]
[364995599,1749387046038,-480.0,0.00019671,2]
[364995601,1749387046047,-1328.63,0.00019671,2]
[364995603,1749387046057,-480.0,0.00019671,2]
[364995605,1749387046066,-739.45,0.00019671,2]
[364995607,1749387046075,-508.65,0.00019671,2]
[364995609,1749387046085,-480.0,0.00019671,2]
[364995611,1749387046094,-625.51,0.00019671,2]
[364995613,1749387046103,-2436.96,0.00019671,2]
[364995615,1749387046112,-503.34,0.00019671,2]
[364995617,1749387046121,-480.0,0.00019671,2]
[364995619,1749387046130,-1062.18,0.00019671,2]
[364995621,1749387046141,-2202.69,0.00019671,2]
[364995623,1749387046154,-480.0,0.00019671,2]
[364995625,1749387046163,-480.0,0.00019671,2]
[364995627,1749387046173,-756.95,0.00019671,2]
[364995629,1749387046181,-480.0,0.00019671,2]
[364995630,1749387046191,-480.0,0.00019671,2]
[364995632,1749387046200,-480.0,0.00019671,2]
[364995634,1749387046209,-480.0,0.00019671,2]
[364995636,1749387046219,-525.48,0.00019671,2]
[364995638,1749387046229,-480.0,0.00019671,2]
[364995640,1749387046238,-945.12,0.00019671,2]
[364995642,1749387046247,-497.31,0.00019671,2]
[364995645,1749387046258,-480.0,0.00019671,2]
[364995647,1749387046272,-480.0,0.00019671,2]
[364995649,1749387046282,-1211.19,0.00019671,2]
[364995651,1749387046291,-480.0,0.00019671,2]
[364995653,1749387046300,-480.0,0.00019671,2]
[364995655,1749387046310,-3341.69,0.00019671,2]
[364995657,1749387046320,-39016.1,0.00019671,2]
[364995659,1749387046330,-480.0,0.00019671,2]
[364995661,1749387046339,-480.0,0.00019671,2]
[364995662,1749387046349,-1733.6,0.00019671,2]
[364995664,1749387046359,-480.0,0.00019671,2]
[364995667,1749387046368,-3008.79,0.00019671,2]
[364995668,1749387046378,-751.49,0.00019671,2]
[364995670,1749387046387,-480.0,0.00019671,2]
[364995672,1749387046397,-480.0,0.00019671,2]
[364995674,1749387046407,-480.0,0.00019671,2]
[364995677,1749387046416,-480.0,0.00019671,2]
[364995678,1749387046426,-2191.96,0.00019671,2]
[364995681,1749387046435,-569.14,0.00019671,2]
[364995684,1749387046445,-480.0,0.00019671,2]
[364995687,1749387046454,-480.0,0.00019671,2]
[364995688,1749387046464,-480.0,0.00019671,2]
[364995690,1749387046473,-597.34,0.00019671,2]
[364995692,1749387046482,-609.81,0.00019671,2]
[364995694,1749387046492,-3184.8723555,0.00019681,2]
[364995696,1749387046501,-176.63,0.00019682,2]
[364995698,1749387046510,-3184.8723555,0.00019754,2]
[364995700,1749387046519,-161.31761,0.0001982,4]
[364995702,1749387046529,-3184.8723555,0.00019827,2]
[364995704,1749387046538,-500.0,0.00019834,2]
[364995706,1749387046548,-480.0,0.00019835,2]
[364995708,1749387046557,-480.0,0.00019835,2]
[364995710,1749387046567,-603.55,0.00019835,2]
[364995712,1749387046576,-480.0,0.00019835,2]
[364995714,1749387046586,-480.0,0.00019835,2]
[364995716,1749387046595,-480.0,0.00019835,2]
[364995718,1749387046604,-480.0,0.00019835,2]
[364995720,1749387046614,-480.0,0.00019835,2]
[364995722,1749387046624,-480.0,0.00019835,2]
[364995724,1749387046633,-480.0,0.00019835,2]
[364995726,1749387046643,-480.0,0.00019835,2]
[364995728,1749387046652,-480.0,0.00019835,2]
[364995730,1749387046662,-1131.02,0.00019835,2]
[364995732,1749387046672,-480.0,0.00019835,2]
[364995734,1749387046682,-480.0,0.00019835,2]
[364995736,1749387046693,-480.0,0.00019835,2]
[364995738,1749387046703,-480.0,0.00019835,2]
[364995740,1749387046715,-480.0,0.00019835,2]
[364995742,1749387046726,-480.0,0.00019835,2]
[364995745,1749387046736,-480.0,0.00019835,2]
[364995746,1749387046746,-2264.02,0.00019835,2]
[364995749,1749387046756,-480.0,0.00019835,2]
[364995769,1749387046947,-265.91126805,0.00019835,2]
[364995771,1749387046957,-480.0,0.00019835,2]
[364995773,1749387046966,-983.82,0.00019835,2]
[364995775,1749387046975,-480.0,0.00019835,2]
[364995777,1749387046985,-480.0,0.00019835,2]
[364995779,1749387046994,-1328.63,0.00019835,2]
[364995781,1749387047004,-513.01963424,0.00019835,2]
[364995783,1749387047013,-739.45,0.00019835,2]
[364995785,1749387047024,-508.65,0.00019835,2]
[364995787,1749387047034,-310.28,0.00019835,2]
[364995789,1749387047044,-625.51,0.00019835,2]
[364995791,1749387047054,-2436.96,0.00019835,2]
[364995793,1749387047064,-503.34,0.00019835,2]
[364995795,1749387047074,-480.0,0.00019835,2]
[364995797,1749387047084,-1062.18,0.00019835,2]